fUSD/lending_fUSD_20250207
["ID","MTS","AMOUNT","RATE_DAILY","PERIOD"]
[352045989,1738897840957,-1133.2411673,0.00019287,2]
[352045990,1738897840966,-1133.2411673,0.00019287,2]
[352045991,1738897840976,-1133.2411673,0.00019287,2]
[352045992,1738897840986,-379.7986173,0.00019287,2]
[352045993,1738897840995,-379.7986173,0.00019287,2]
[352045994,1738897841004,-379.7986173,0.00019287,2]
[352045995,1738897841014,-5800.0,0.00019292,2]
[352045996,1738897841024,-4000.0,0.00019292,2]
[352045997,1738897841033,-159.75812974,0.00019296,2]
[352045998,1738897841042,-9959.3527256,0.00019297,3]
[352045999,1738897841051,-200.0,0.00019297,2]
[352046000,1738897841060,-167.22557885,0.00019298,3]
[352046001,1738897841070,-500.0,0.00019298,3]
[352046002,1738897841081,-166.18186527,0.00019298,2]
[352046003,1738897841090,-500.0,0.00019298,3]
[352046004,1738897841100,-460.42744273,0.00019298,3]
[352046013,1738897843487,-371.37,0.00016635,2]
[352046014,1738897843497,-39.57255727,0.00019298,3]
[352046015,1738897843507,-500.0,0.00019298,3]
[352046016,1738897843518,-500.0,0.00019298,3]
[352046017,1738897843527,-500.0,0.00019298,3]
[352046018,1738897843537,-222.35125314,0.00019298,2]
[352046019,1738897843546,-500.0,0.00019298,3]
[352046020,1738897843555,-16.24058799,0.00019298,2]
[352046021,1738897843567,-300.0,0.00019298,2]
[352046022,1738897843615,-2850.59846469,0.00019298,2]
[352046023,1738897843625,-500.0,0.00019298,3]
[352046024,1738897843634,-500.0,0.00019298,3]
[352046025,1738897843645,-500.0,0.00019298,3]
[352046026,1738897843654,-500.0,0.00019298,3]
[352046027,1738897843665,-500.0,0.00019298,3]
[352046028,1738897843674,-500.0,0.00019298,3]
[352046029,1738897843684,-322.14239512,0.00019298,2]
[352046030,1738897843694,-500.0,0.00019299,3]
[352046031,1738897843703,-500.0,0.00019299,3]
[352046032,1738897843712,-500.0,0.00019299,3]
[352046033,1738897843721,-500.0,0.00019299,3]
[352046034,1738897843730,-500.0,0.00019299,3]
[352046035,1738897843740,-500.0,0.00019299,3]
[352046036,1738897843751,-500.0,0.00019299,3]
[352046037,1738897843759,-74.85914019,0.00019299,3]
[352046063,1738897846442,-500.0,0.00019298,3]
[352046064,1738897846452,-316.01433835,0.00019299,3]
[352046065,1738897846461,-265.0171274,0.00019299,3]
[352046066,1738897846477,-234.9828726,0.00019299,3]
[352046067,1738897846487,-349.07085198,0.00019299,3]
[352046080,1738897963317,-150.0,8.835e-05,2]
[352046081,1738897963344,-7247.4664,8.836e-05,2]
[352046082,1738897963366,-12478.5336,8.836e-05,2]
[352046093,1738898152656,840.2,0.0002,120]
[352046110,1738899031567,-300.0,8.835e-05,2]
[352046111,1738899031576,-24.34294062,8.835e-05,2]
[352046112,1738899031621,-125.65705938,8.835e-05,2]
[352046113,1738899031630,-5374.34294062,8.836e-05,2]
[352046114,1738899031676,-255.53714086,8.836e-05,2]
[352046115,1738899031784,-15764.14131852,8.836e-05,2]
[352046116,1738899031794,-1680.5004,8.836e-05,2]
[352046117,1738899031803,-386.3062,8.836e-05,2]
[352046118,1738899031812,-607.4836,8.836e-05,2]
[352046119,1738899031821,-18253.9459,8.973e-05,2]
[352046120,1738899031830,-5000.0,8.973e-05,2]
[352046121,1738899031842,-420.0,9.718e-05,2]
[352046122,1738899031851,-255.0,9.718e-05,2]
[352046123,1738899031861,-54751.01143889,0.0001,2]
[352046124,1738899031873,-46510.07,0.0001,2]
[352046125,1738899031889,-6556.39054639,0.0001,2]
[352046126,1738899031899,-225795.72949193,0.0001,2]
[352046128,1738899037383,-1000.0,0.0001,2]
[352046129,1738899037492,-2813.03159,0.0001,2]
[352046130,1738899037653,-540.08080873,0.0001,2]
[352046588,1738899042630,-3104.26986549,0.0001,2]
[352046589,1738899042640,-5095.73013451,0.0001,2]
[352046590,1738899042685,-268.92612409,0.0001,2]
[352046922,1738899045815,-459.6976,0.0001,2]
[352047641,1738899907992,212.98118379,0.0002,120]
[352047678,1738900231681,-944.535,8.699e-05,2]
[352047679,1738900231692,-150.0,9.999e-05,2]
[352047680,1738900231701,-184.0,9.999e-05,2]
[352047681,1738900231711,-165982.38584207,0.0001,2]
[352047682,1738900231721,-15869.66,0.0001,2]
[352047683,1738900231731,-4000.0,0.0001,2]
[352047684,1738900231740,-255.87,0.00010137,2]
[352047685,1738900231750,-421.15029236,0.00010179,2]
[352047686,1738900231759,-250.0,0.00010848,2]
[352047687,1738900231769,-150.0,0.00010986,2]
[352047688,1738900231778,-2733.98924264,0.00011,2]
[352047689,1738900231787,-6012.20296669,0.00011761,2]
[352047690,1738900231796,-564.81,0.00013377,2]
[352047691,1738900231806,-4000.0,0.00015,2]
[352047692,1738900231815,-525.15,0.00015093,2]
[352047693,1738900231824,-150.0,0.00015524,2]
[352047694,1738900231833,-1574.12,0.00015524,2]
[352047695,1738900231843,-564.81,0.00015641,2]
[352047696,1738900231852,-1000.0,0.0001589,4]
[352047697,1738900231861,-599.86,0.00016049,2]
[352047698,1738900231871,-215.89105417,0.00016164,4]
[352047699,1738900231880,-250.0,0.00016174,2]
[352047700,1738900231891,-2026.0,0.000162,2]
[352047701,1738900231900,-224.378088,0.00016438,2]
[352047702,1738900231910,-231.382649,0.00016438,2]
[352047703,1738900231919,-490.82699193,0.00016438,2]
[352047704,1738900231928,-562.49,0.00016438,2]
[352047705,1738900231937,-500.0,0.00016438,2]
[352047706,1738900231946,-500.0,0.00016438,2]
[352047707,1738900231956,-500.0,0.00016438,2]
[352047708,1738900231966,-500.0,0.00016438,2]
[352047709,1738900231977,-500.0,0.00016438,2]
[352047710,1738900231986,-500.0,0.00016438,2]
[352047711,1738900231995,-516.47210712,0.00016438,2]
[352047712,1738900232007,-500.0,0.00016438,2]
[352047713,1738900232017,-500.0,0.00016438,2]
[352047714,1738900232026,-500.0,0.00016438,2]
[352047715,1738900232035,-500.0,0.00016438,2]
[352047716,1738900232045,-274.05095034,0.00016438,2]
[352047717,1738900232055,-338.85,0.00016438,2]
[352047718,1738900232065,-507.9875178,0.00016438,2]
[352047719,1738900232074,-150.92914802,0.00016438,2]
[352047720,1738900232084,-500.0,0.00016438,2]
[352047721,1738900232094,-274.54751638,0.00016438,2]
[352047722,1738900232103,-156.53059299,0.00016438,2]
[352047723,1738900232112,-552.63,0.00016438,2]
[352047724,1738900232122,-500.0,0.00016438,2]
[352047725,1738900232131,-500.0,0.00016438,2]
[352047726,1738900232141,-500.0,0.00016438,2]
[352047727,1738900232150,-500.0,0.00016438,2]
[352047728,1738900232160,-518.21,0.00016438,2]
[352047729,1738900232169,-500.0,0.00016438,2]
[352047730,1738900232178,-500.0,0.00016438,2]
[352047731,1738900232187,-500.0,0.00016438,2]
[352047732,1738900232197,-500.0,0.00016438,2]
[352047733,1738900232206,-500.0,0.00016438,2]
[352047734,1738900232215,-500.0,0.00016438,2]
[352047735,1738900232227,-500.0,0.00016438,2]
[352047736,1738900232238,-500.0,0.00016438,2]
[352047737,1738900232247,-502.98568793,0.00016438,2]
[352047738,1738900232256,-250.3904737,0.00016438,2]
[352047739,1738900232265,-500.0,0.00016438,2]
[352047740,1738900232275,-508.92075166,0.00016438,2]
[352047741,1738900232284,-500.0,0.00016438,2]
[352047742,1738900232293,-502.47652501,0.00016438,2]
[352047743,1738900232302,-626.52,0.00016438,2]
[352047744,1738900232312,-500.0,0.00016438,2]
[352047745,1738900232322,-500.0,0.00016438,2]
[352047746,1738900232331,-500.0,0.00016438,2]
[352047747,1738900232341,-500.0,0.00016438,2]
[352047748,1738900232350,-500.0,0.00016438,2]
[352047749,1738900232359,-500.0,0.00016438,2]
[352047750,1738900232368,-564.41,0.00016438,2]
[352047751,1738900232377,-500.0,0.00016438,2]
[352047752,1738900232387,-500.0,0.00016438,2]
[352047753,1738900232396,-500.0,0.00016438,2]
[352047754,1738900232406,-457.09728863,0.00016438,2]
[352047755,1738900232415,-500.0,0.00016438,2]
[352047756,1738900232424,-508.96065279,0.00016438,2]
[352047757,1738900232434,-548.72,0.00016438,2]
[352047758,1738900232444,-500.0,0.00016438,2]
[352047759,1738900232453,-500.0,0.00016438,2]
[352047760,1738900232463,-500.0,0.00016438,2]
[352047761,1738900232472,-435.07,0.00016438,2]
[352047762,1738900232484,-585.31,0.00016438,2]
[352047763,1738900232494,-500.0,0.00016438,2]
[352047764,1738900232503,-500.0,0.00016438,2]
[352047765,1738900232512,-500.0,0.00016438,2]
[352047766,1738900232522,-500.0,0.00016438,2]
[352047767,1738900232531,-2641.56,0.00016438,2]
[352047768,1738900232540,-500.0,0.00016438,2]
[352047769,1738900232550,-500.0,0.00016438,2]
[352047770,1738900232559,-500.0,0.00016438,2]
[352047771,1738900232569,-500.0,0.00016438,2]
[352047772,1738900232579,-500.0,0.00016438,2]
[352047773,1738900232588,-500.0,0.00016438,2]
[352047774,1738900232598,-500.0,0.00016438,2]
[352047775,1738900232607,-500.0,0.00016438,2]
[352047776,1738900232616,-500.0,0.00016438,2]
[352047777,1738900232625,-500.0,0.00016438,2]
[352047778,1738900232635,-500.0,0.00016438,2]
[352047779,1738900232645,-500.0,0.00016438,2]
[352047780,1738900232654,-580.57,0.00016438,2]
[352047781,1738900232664,-500.0,0.00016438,2]
[352047782,1738900232673,-500.0,0.00016438,2]
[352047783,1738900232682,-500.0,0.00016438,2]
[352047784,1738900232692,-500.0,0.00016438,2]
[352047785,1738900232701,-500.0,0.00016438,2]
[352047786,1738900232711,-500.0,0.00016438,2]
[352047787,1738900232720,-500.0,0.00016438,2]
[352047788,1738900232730,-500.0,0.00016438,2]
[352047789,1738900232739,-500.0,0.00016438,2]
[352047790,1738900232748,-500.0,0.00016438,2]
[352047791,1738900232758,-547.28,0.00016438,2]
[352047792,1738900232768,-500.0,0.00016438,2]
[352047793,1738900232778,-500.0,0.00016438,2]
[352047794,1738900232788,-500.0,0.00016438,2]
[352047795,1738900232796,-500.0,0.00016438,2]
[352047796,1738900232806,-500.0,0.00016438,2]
[352047797,1738900232816,-500.0,0.00016438,2]
[352047798,1738900232825,-500.9824628,0.00016438,2]
[352047799,1738900232835,-500.0,0.00016438,2]
[352047800,1738900232844,-500.0,0.00016438,2]
[352047801,1738900232853,-500.0,0.00016438,2]
[352047802,1738900232863,-500.0,0.00016438,2]
[352047803,1738900232872,-500.0,0.00016438,2]
[352047804,1738900232882,-500.0,0.00016438,2]
[352047805,1738900232892,-500.0,0.00016438,2]
[352047806,1738900232902,-638.29,0.00016438,2]
[352047807,1738900232911,-500.0,0.00016438,2]
[352047808,1738900232922,-500.0,0.00016438,2]
[352047809,1738900232931,-500.0,0.00016438,2]
[352047810,1738900232941,-500.0,0.00016438,2]
[352047811,1738900232950,-525.23,0.00016438,2]
[352047812,1738900232960,-559.8,0.00016438,2]
[352047813,1738900232970,-500.0,0.00016438,2]
[352047814,1738900232980,-500.0,0.00016438,2]
[352047815,1738900232989,-500.0,0.00016438,2]
[352047816,1738900232998,-542.93,0.00016438,2]
[352047817,1738900233011,-500.0,0.00016438,2]
[352047818,1738900233022,-629.85,0.00016438,2]
[352047819,1738900233031,-527.22,0.00016438,2]
[352047820,1738900233041,-500.0,0.00016438,2]
[352047821,1738900233052,-500.0,0.00016438,2]
[352047822,1738900233062,-500.0,0.00016438,2]
[352047823,1738900233072,-500.0,0.00016438,2]
[352047824,1738900233083,-200.04,0.00016438,2]
[352047825,1738900233094,-500.0,0.00016438,2]
[352047826,1738900233103,-500.0,0.00016438,2]
[352047827,1738900233114,-500.0,0.00016438,2]
[352047828,1738900233124,-500.0,0.00016438,2]
[352047829,1738900233134,-500.0,0.00016438,2]
[352047830,1738900233144,-500.0,0.00016438,2]
[352047831,1738900233153,-597.92369476,0.00016438,2]
[352047832,1738900233163,-500.0,0.00016438,2]
[352047833,1738900233172,-500.0,0.00016438,2]
[352047834,1738900233183,-500.0,0.00016438,2]
[352047835,1738900233192,-500.0,0.00016438,2]
[352047836,1738900233203,-500.0,0.00016438,2]
[352047837,1738900233212,-500.0,0.00016438,2]
[352047838,1738900233223,-500.0,0.00016438,2]
[352047839,1738900233234,-500.0,0.00016438,2]
[352047840,1738900233244,-500.0,0.00016438,2]
[352047841,1738900233254,-500.0,0.00016438,2]
[352047842,1738900233263,-500.0,0.00016438,2]
[352047843,1738900233273,-500.0,0.00016438,2]
[352047844,1738900233283,-510.36992552,0.00016438,2]
[352047845,1738900233292,-500.0,0.00016438,2]
[352047846,1738900233302,-500.0,0.00016438,2]
[352047847,1738900233312,-500.0,0.00016438,2]
[352047848,1738900233322,-500.0,0.00016438,2]
[352047849,1738900233332,-500.0,0.000165,6]
[352047850,1738900233342,-500.0,0.00016508,2]
[352047851,1738900233352,-500.0,0.00016508,2]
[352047852,1738900233362,-1000.0,0.0001656,2]
[352047853,1738900233372,-224.378088,0.00016575,2]
[352047854,1738900233382,-231.382649,0.00016575,2]
[352047855,1738900233391,-150.73691522,0.00016575,2]
[352047856,1738900233401,-463.92371178,0.00016575,2]
[352047857,1738900233411,-500.0,0.00016575,2]
[352047858,1738900233420,-500.0,0.00016575,2]
[352047859,1738900233430,-479.89137525,0.00016575,2]
[352047860,1738900233440,-500.0,0.00016575,2]
[352047861,1738900233450,-500.0,0.00016575,2]
[352047862,1738900233459,-500.0,0.00016575,2]
[352047863,1738900233469,-500.0,0.00016575,2]
[352047864,1738900233479,-500.0,0.00016575,2]
[352047865,1738900233489,-500.0,0.00016575,2]
[352047866,1738900233499,-2641.56,0.00016575,2]
[352047867,1738900233509,-500.0,0.00016575,2]
[352047868,1738900233519,-500.0,0.00016575,2]
[352047869,1738900233529,-166.92,0.00016575,2]
[352047870,1738900233538,-500.0,0.00016575,2]
[352047871,1738900233548,-500.0,0.00016575,2]
[352047872,1738900233558,-170.43,0.00016575,2]
[352047873,1738900233568,-500.0,0.00016575,2]
[352047874,1738900233578,-500.0,0.00016575,2]
[352047875,1738900233588,-500.0,0.00016575,2]
[352047876,1738900233598,-500.0,0.00016575,2]
[352047877,1738900233608,-500.0,0.00016575,2]
[352047878,1738900233618,-187.93,0.00016575,2]
[352047879,1738900233627,-500.0,0.00016575,2]
[352047880,1738900233637,-299.46,0.00016575,2]
[352047881,1738900233647,-500.0,0.00016575,2]
[352047882,1738900233657,-500.0,0.00016575,2]
[352047883,1738900233667,-186.31,0.00016575,2]
[352047884,1738900233677,-500.0,0.00016575,2]
[352047885,1738900233687,-313.88,0.00016575,2]
[352047886,1738900233696,-343.95,0.00016575,2]
[352047887,1738900233706,-500.0,0.00016575,2]
[352047888,1738900233716,-500.0,0.00016575,2]
[352047889,1738900233726,-500.0,0.00016575,2]
[352047890,1738900233736,-500.0,0.00016575,2]
[352047891,1738900233746,-443.09774911,0.00016575,2]
[352047892,1738900233756,-587.54989441,0.00016575,2]
[352047893,1738900233766,-500.0,0.00016575,2]
[352047894,1738900233776,-500.0,0.00016575,2]
[352047895,1738900233786,-500.0,0.00016575,2]
[352047896,1738900233795,-500.0,0.00016575,2]
[352047897,1738900233805,-507.58,0.00016575,2]
[352047898,1738900233815,-500.0,0.00016575,2]
[352047899,1738900233825,-500.0,0.00016575,2]
[352047900,1738900233834,-430.36319108,0.00016575,2]
[352047901,1738900233844,-520.29094255,0.00016575,2]
[352047902,1738900233854,-500.0,0.00016575,2]
[352047903,1738900233864,-500.0,0.00016575,2]
[352047904,1738900233873,-500.0,0.00016575,2]
[352047905,1738900233883,-500.0,0.00016575,2]
[352047906,1738900233893,-500.0,0.00016575,2]
[352047907,1738900233902,-500.0,0.00016575,2]
[352047908,1738900233912,-518.34,0.00016575,2]
[352047909,1738900233921,-500.0,0.00016575,2]
[352047910,1738900233931,-500.0,0.00016575,2]
[352047911,1738900233941,-500.0,0.00016575,2]
[352047912,1738900233952,-500.0,0.00016575,2]
[352047913,1738900233962,-500.0,0.00016575,2]
[352047914,1738900233972,-500.0,0.00016575,2]
[352047915,1738900233983,-500.0,0.00016575,2]
[352047916,1738900233993,-500.0,0.00016575,2]
[352047917,1738900234006,-500.0,0.00016575,2]
[352047918,1738900234016,-500.0,0.00016575,2]
[352047919,1738900234026,-500.0,0.00016575,2]
[352047920,1738900234035,-514.05059416,0.00016575,2]
[352047921,1738900234046,-1000.0,0.000166,6]
[352047922,1738900234056,-476.38,0.00016658,30]
[352047923,1738900234066,-1500.0,0.000167,6]
[352047924,1738900234076,-224.378088,0.00016712,2]
[352047925,1738900234086,-231.382649,0.00016712,2]
[352047926,1738900234095,-500.0,0.00016712,2]
[352047927,1738900234105,-427.72805342,0.00016712,2]
[352047928,1738900234114,-500.0,0.00016712,2]
[352047929,1738900234125,-500.0,0.00016712,2]
[352047930,1738900234135,-500.0,0.00016712,2]
[352047931,1738900234144,-500.0,0.00016712,2]
[352047932,1738900234154,-500.0,0.00016712,2]
[352047933,1738900234164,-2641.56,0.00016712,2]
[352047934,1738900234173,-500.0,0.00016712,2]
[352047935,1738900234183,-500.0,0.00016712,2]
[352047936,1738900234192,-500.0,0.00016712,2]
[352047937,1738900234202,-500.0,0.00016712,2]
[352047938,1738900234211,-500.0,0.00016712,2]
[352047939,1738900234220,-500.0,0.00016712,2]
[352047940,1738900234233,-500.0,0.00016712,2]
[352047941,1738900234243,-500.0,0.00016712,2]
[352047942,1738900234252,-500.0,0.00016712,2]
[352047943,1738900234262,-233.75795267,0.00016712,2]
[352047944,1738900234271,-500.0,0.00016712,2]
[352047945,1738900234281,-500.0,0.00016712,2]
[352047946,1738900234291,-500.0,0.00016712,2]
[352047947,1738900234301,-500.0,0.00016712,2]
[352047948,1738900234311,-500.0,0.00016712,2]
[352047949,1738900234320,-500.0,0.00016712,2]
[352047950,1738900234330,-500.0,0.00016712,2]
[352047951,1738900234340,-500.0,0.00016712,2]
[352047952,1738900234349,-196.61723631,0.00016712,2]
[352047953,1738900234359,-500.0,0.00016712,2]
[352047954,1738900234368,-500.0,0.00016712,2]
[352047955,1738900234377,-500.0,0.00016712,2]
[352047956,1738900234387,-500.0,0.00016712,2]
[352047957,1738900234396,-180.89332253,0.00016712,2]
[352047958,1738900234405,-500.0,0.00016712,2]
[352047959,1738900234414,-500.0,0.00016712,2]
[352047960,1738900234423,-500.0,0.00016712,2]
[352047961,1738900234433,-500.0,0.00016712,2]
[352047962,1738900234441,-500.0,0.00016712,2]
[352047963,1738900234449,-500.0,0.00016712,2]
[352047964,1738900234459,-625.4990491,0.00016712,2]
[352047965,1738900234469,-500.0,0.00016712,2]
[352047966,1738900234481,-500.0,0.00016712,2]
[352047967,1738900234490,-500.0,0.00016712,2]
[352047968,1738900234500,-500.0,0.00016712,2]
[352047969,1738900234510,-212.71,0.00016712,2]
[352047970,1738900234520,-500.0,0.00016712,2]
[352047971,1738900234530,-500.0,0.00016712,2]
[352047972,1738900234540,-500.0,0.00016712,2]
[352047973,1738900234550,-222.35125314,0.00016749,2]
[352047974,1738900234559,-2111.22603512,0.00016749,2]
[352047975,1738900234710,-187.0,0.000168,3]
[352047976,1738900234720,-187.0,0.000168,7]
[352047977,1738900234730,-187.0,0.000168,6]
[352047978,1738900234740,-187.0,0.000168,6]
[352047979,1738900234750,-187.32,0.000168,5]
[352047980,1738900234759,-2100.0,0.000168,6]
[352047981,1738900234769,-255.87,0.00016813,2]
[352047982,1738900234779,-152.57,0.00016838,2]
[352047983,1738900234788,-152.57,0.00016838,2]
[352047984,1738900234798,-419.6399784,0.00016848,2]
[352047985,1738900234808,-500.0,0.00016849,2]
[352047986,1738900234818,-168.67662583,0.00016849,2]
[352047987,1738900234828,-500.0,0.00016849,2]
[352047988,1738900234837,-500.0,0.00016849,2]
[352047989,1738900234846,-500.0,0.00016849,2]
[352047990,1738900234856,-500.0,0.00016849,2]
[352047991,1738900234865,-2641.56,0.00016849,2]
[352047992,1738900234875,-500.0,0.00016849,2]
[352047993,1738900234885,-500.0,0.00016849,2]
[352047994,1738900234896,-500.0,0.00016849,2]
[352047995,1738900234908,-500.0,0.00016849,2]
[352047996,1738900234917,-500.0,0.00016849,2]
[352047997,1738900234926,-500.0,0.00016849,2]
[352047998,1738900234938,-500.0,0.00016849,2]
[352047999,1738900234950,-500.0,0.00016849,2]
[352048000,1738900234959,-315.76845325,0.00016849,2]
[352048001,1738900234969,-500.0,0.00016849,2]
[352048002,1738900234979,-500.0,0.00016849,2]
[352048003,1738900234989,-500.0,0.00016849,2]
[352048004,1738900234999,-500.0,0.00016849,2]
[352048005,1738900235013,-500.0,0.00016849,2]
[352048006,1738900235022,-500.0,0.00016849,2]
[352048007,1738900235031,-500.0,0.00016849,2]
[352048008,1738900235041,-500.0,0.00016849,2]
[352048009,1738900235051,-500.0,0.00016849,2]
[352048010,1738900235061,-500.0,0.00016849,2]
[352048011,1738900235071,-500.0,0.00016849,2]
[352048012,1738900235081,-500.0,0.00016849,2]
[352048013,1738900235094,-500.0,0.00016849,2]
[352048014,1738900235105,-186.82996165,0.00016849,2]
[352048015,1738900235114,-500.0,0.00016849,2]
[352048016,1738900235125,-350.24229292,0.00016849,2]
[352048017,1738900235137,-500.0,0.00016849,2]
[352048018,1738900235146,-500.0,0.00016849,2]
[352048019,1738900235157,-500.0,0.00016849,2]
[352048020,1738900235167,-500.0,0.00016849,2]
[352048021,1738900235177,-500.0,0.00016849,2]
[352048022,1738900235187,-500.0,0.00016849,2]
[352048023,1738900235197,-540.58139529,0.00016849,2]
[352048024,1738900235207,-500.0,0.00016849,2]
[352048025,1738900235216,-500.0,0.00016849,2]
[352048026,1738900235228,-507.959,0.00016865,2]
[352048027,1738900235237,-161.34198508,0.00016873,2]
[352048028,1738900235246,-617.29229144,0.00016873,2]
[352048029,1738900235256,-207.65410586,0.00016873,2]
[352048030,1738900235265,-500.0,0.00016873,2]
[352048031,1738900235275,-2600.0,0.000169,6]
[352048032,1738900235283,-12904.26001945,0.000169,2]
[352048033,1738900235292,-151.81,0.00016907,2]
[352048034,1738900235303,-1873.941,0.00016937,2]
[352048035,1738900235313,-152.327,0.00016937,2]
[352048036,1738900235323,-1300.485,0.00016945,2]
[352048037,1738900235332,-2023.0,0.00016945,2]
[352048038,1738900235341,-213.297,0.00016945,2]
[352048039,1738900235350,-574.231,0.00016945,2]
[352048040,1738900235359,-274.554,0.00016945,2]
[352048041,1738900235368,-638.0,0.00016945,2]
[352048042,1738900235377,-1867.0,0.00016945,2]
[352048043,1738900235386,-907.0,0.00016945,2]
[352048044,1738900235396,-1279.463,0.00016945,2]
[352048045,1738900235405,-2954.0,0.00016945,2]
[352048046,1738900235415,-783.0,0.00016945,2]
[352048047,1738900235424,-539.0,0.00016945,2]
[352048048,1738900235433,-3912.0,0.00016945,2]
[352048049,1738900235443,-1007.0,0.00016945,2]
[352048050,1738900235453,-167.34,0.0001697,2]
[352048051,1738900235462,-502.85747432,0.00016973,2]
[352048052,1738900235477,-525.15,0.00016979,2]
[352048053,1738900235489,-500.0,0.00016986,2]
[352048054,1738900235498,-500.0,0.00016986,2]
[352048055,1738900235508,-500.0,0.00016986,2]
[352048056,1738900235517,-500.0,0.00016986,2]
[352048057,1738900235527,-500.0,0.00016986,2]
[352048058,1738900235542,-2641.56,0.00016986,2]
[352048059,1738900235552,-500.0,0.00016986,2]
[352048060,1738900235564,-500.0,0.00016986,2]
[352048061,1738900235573,-500.0,0.00016986,2]
[352048062,1738900235582,-500.0,0.00016986,2]
[352048063,1738900235592,-500.0,0.00016986,2]
[352048064,1738900235601,-500.0,0.00016986,2]
[352048065,1738900235610,-500.0,0.00016986,2]
[352048066,1738900235620,-500.0,0.00016986,2]
[352048067,1738900235630,-500.0,0.00016986,2]
[352048068,1738900235639,-500.0,0.00016986,2]
[352048069,1738900235649,-512.35014504,0.00016986,2]
[352048070,1738900235659,-500.0,0.00016986,2]
[352048071,1738900235668,-500.0,0.00016986,2]
[352048072,1738900235677,-500.0,0.00016986,2]
[352048073,1738900235687,-500.0,0.00016986,2]
[352048074,1738900235696,-500.0,0.00016986,2]
[352048075,1738900235706,-299.06919577,0.00016986,2]
[352048076,1738900235715,-500.0,0.00016986,2]
[352048077,1738900235728,-386.99412848,0.00016986,2]
[352048078,1738900235739,-500.0,0.00016986,2]
[352048079,1738900235748,-500.0,0.00016986,2]
[352048080,1738900235758,-500.0,0.00016986,2]
[352048081,1738900235767,-500.0,0.00016986,2]
[352048082,1738900235777,-500.0,0.00016986,2]
[352048083,1738900235786,-500.0,0.00016986,2]
[352048084,1738900235796,-500.0,0.00016986,2]
[352048085,1738900235805,-500.0,0.00016986,2]
[352048086,1738900235814,-500.0,0.00016986,2]
[352048087,1738900235824,-500.0,0.00016986,2]
[352048088,1738900235834,-500.0,0.00016986,2]
[352048089,1738900235843,-10000.0,0.00017,7]
[352048090,1738900235852,-3119.02,0.00017,2]
[352048091,1738900235862,-211.13591067,0.00017005,2]
[352048092,1738900235871,-12904.26001943,0.00017035,2]
[352048093,1738900235880,-500.0,0.00017123,2]
[352048094,1738900235889,-500.0,0.00017123,2]
[352048095,1738900235899,-500.0,0.00017123,2]
[352048096,1738900235908,-479.18445869,0.00017123,2]
[352048097,1738900235918,-500.0,0.00017123,2]
[352048098,1738900235927,-2641.56,0.00017123,2]
[352048099,1738900235937,-500.0,0.00017123,2]
[352048100,1738900235946,-332.10043595,0.00017123,2]
[352048101,1738900235956,-500.0,0.00017123,2]
[352048102,1738900235965,-500.0,0.00017123,2]